bitfinex/quotes_BTCUSD_20230109
["timestamp","ask_amount","ask_price","bid_price","bid_amount"]
[1673270947996,0.80745565,17279.0,17278.0,2.31570374]
[1673270954119,0.63385148,17279.0,17278.0,2.31570374]
[1673270957774,0.98099543,17279.0,17278.0,2.31570374]
[1673270958026,0.98099632,17279.0,17278.0,2.31570374]
[1673270958273,0.80745565,17279.0,17278.0,2.31570374]
[1673270958753,0.63385638,17279.0,17278.0,2.31570374]
[1673270959041,0.80745565,17279.0,17278.0,2.31570374]
[1673270959789,0.80745565,17279.0,17278.0,1.89048267]
[1673270961460,0.98097424,17279.0,17278.0,1.89048267]
[1673270964336,0.98097424,17279.0,17278.0,2.46925267]
[1673270965981,0.63383029,17279.0,17278.0,2.46925267]
[1673270966436,0.63383029,17279.0,17278.0,1.89048267]
[1673270967861,0.63383029,17279.0,17278.0,1.89038116]
[1673270968353,0.63383029,17279.0,17278.0,2.46915116]
[1673270968843,0.19993381,17279.0,17278.0,1.89038116]
[1673270969099,0.19993381,17279.0,17278.0,1.49038116]
[1673270969894,0.63408901,17279.0,17278.0,1.91616085]
[1673270970415,0.80773496,17279.0,17278.0,2.49493085]
[1673270970670,0.63406916,17279.0,17278.0,3.07370085]
[1673270971421,0.37358623,17279.0,17278.0,3.07370085]
[1673270972682,0.63406916,17279.0,17278.0,3.07370085]
[1673270973375,0.63406916,17279.0,17278.0,3.65247085]
[1673270973622,0.37358623,17279.0,17278.0,4.01490085]
[1673270974627,0.37358623,17279.0,17278.0,3.65247085]
[1673270974886,0.37358623,17279.0,17278.0,4.01490085]
[1673270976818,0.37358623,17279.0,17278.0,3.65247085]
[1673270977065,0.37358623,17279.0,17278.0,4.01490085]
[1673270978367,0.19993381,17279.0,17278.0,4.01490085]
[1673270978590,0.37358623,17279.0,17278.0,4.01490085]
[1673270978857,0.19993381,17279.0,17278.0,4.01490085]
[1673270979317,0.19993381,17279.0,17278.0,3.65247085]
[1673270979542,0.19993381,17279.0,17278.0,4.01490085]
[1673270981580,0.19993381,17279.0,17278.0,3.65247085]
[1673270982326,0.37358623,17279.0,17278.0,3.65247085]
[1673270982586,0.37349992,17279.0,17278.0,3.65247085]
[1673270983331,0.37349992,17279.0,17278.0,4.01490085]
[1673270983586,0.37349992,17279.0,17278.0,3.65247085]
[1673270984340,0.37349992,17279.0,17278.0,4.01490085]
[1673270984596,0.1998475,17279.0,17278.0,4.01490085]
[1673270984849,0.1998475,17279.0,17278.0,3.65247085]
[1673270985107,0.1998475,17279.0,17278.0,4.01490085]
[1673270986859,0.1998475,17279.0,17278.0,3.65247085]
[1673270987859,0.37349992,17279.0,17278.0,3.65247085]
[1673270990187,0.1998475,17279.0,17278.0,3.65247085]
[1673270993642,0.1998475,17279.0,17278.0,4.01490085]
[1673270994643,0.1998475,17279.0,17278.0,3.65247085]
[1673271000139,0.19779678,17279.0,17278.0,3.65247085]
[1673271001777,0.19779678,17279.0,17278.0,3.64838585]
[1673271004579,0.19779678,17279.0,17278.0,4.01081585]
[1673271005154,0.19779678,17279.0,17278.0,3.64838585]
[1673271008601,0.15097488,17279.0,17278.0,3.64838585]
[1673271009379,0.3246273,17279.0,17278.0,3.82126301]
[1673271009632,0.3246273,17279.0,17278.0,3.64838585]
[1673271009894,0.3246273,17279.0,17278.0,3.82126301]
[1673271010387,0.3246273,17279.0,17278.0,3.64838585]
[1673271011462,0.58511023,17279.0,17278.0,3.64838585]
[1673271011925,0.3246273,17279.0,17278.0,3.64838585]
[1673271013208,0.58511023,17279.0,17278.0,3.64838585]
[1673271013748,0.3246273,17279.0,17278.0,3.64838585]
[1673271014953,0.3246273,17279.0,17278.0,3.82126301]
[1673271015710,0.3246273,17279.0,17278.0,4.18369301]
[1673271015954,0.3246273,17279.0,17278.0,3.64838585]
[1673271017464,0.58511023,17279.0,17278.0,3.64838585]
[1673271018218,0.3246273,17279.0,17278.0,3.64838585]
[1673271018469,0.3246273,17279.0,17278.0,3.82126301]
[1673271018731,0.3246273,17279.0,17278.0,3.64838585]
[1673271018984,0.58511023,17279.0,17278.0,3.64838585]
[1673271021812,0.3246273,17279.0,17278.0,3.64838585]
[1673271022322,0.3246273,17279.0,17278.0,4.01081585]
[1673271022579,0.3246273,17279.0,17278.0,3.64838585]
[1673271022839,0.3246273,17279.0,17278.0,4.18369301]
[1673271023099,0.3246273,17279.0,17278.0,4.51799301]
[1673271023365,0.3246273,17279.0,17278.0,5.80580952]
[1673271023366,0.15097488,17279.0,17278.0,5.80580952]
[1673271023625,0.02262261,17280.0,17279.0,0.43690242]
[1673271023881,0.02262261,17280.0,17279.0,4.11040225]
[1673271024239,0.02262261,17280.0,17279.0,3.93722305]
[1673271024671,0.02262261,17280.0,17279.0,4.01392426]
[1673271025171,0.02262261,17280.0,17279.0,3.75067426]
[1673271025463,0.06562261,17280.0,17279.0,2.7458729]
[1673271025684,0.06562261,17280.0,17279.0,3.52440915]
[1673271025946,0.06562261,17280.0,17279.0,3.26464035]
[1673271026959,0.06562261,17280.0,17279.0,3.84337735]
[1673271029238,0.06562261,17280.0,17279.0,3.6703151]
[1673271029496,0.06562261,17280.0,17279.0,3.56723799]
[1673271030481,0.06562261,17280.0,17279.0,3.38680546]
[1673271030760,0.06562261,17280.0,17279.0,3.74923546]
[1673271031497,0.06562261,17280.0,17279.0,3.27503799]
[1673271031748,0.06562261,17280.0,17279.0,3.63746799]
[1673271032518,0.06562261,17280.0,17279.0,3.74918015]
[1673271034294,0.06562261,17280.0,17279.0,3.38675015]
[1673271034546,0.06562261,17280.0,17279.0,3.27503799]
[1673271035570,0.06562261,17280.0,17279.0,3.38027373]
[1673271036280,0.23927503,17280.0,17279.0,3.38027373]
[1673271038610,0.23927503,17280.0,17279.0,2.80153673]
[1673271040196,0.06562261,17280.0,17279.0,2.80153673]
[1673271041202,0.23927503,17280.0,17279.0,2.80153673]
[1673271042229,0.47695292,17280.0,17279.0,1.11462516]
[1673271042486,0.49975796,17280.0,17279.0,1.53669852]
[1673271042736,0.23927503,17280.0,17279.0,1.11462516]
[1673271042986,0.23927503,17280.0,17279.0,1.53703167]
[1673271043340,0.23927503,17280.0,17279.0,1.11462516]
[1673271043550,0.23927503,17280.0,17279.0,1.43188105]
[1673271044025,0.23927503,17280.0,17279.0,1.83182889]
[1673271044544,0.23927503,17280.0,17279.0,1.51462516]
[1673271045008,0.49975796,17280.0,17279.0,1.51462516]
[1673271045502,0.49975796,17280.0,17279.0,1.40938942]
[1673271046506,0.49975796,17280.0,17279.0,1.51462516]
[1673271047002,0.67342376,17280.0,17279.0,1.51462516]
[1673271047506,0.67342376,17280.0,17279.0,0.53588816]
[1673271048238,0.49961124,17280.0,17279.0,0.93588816]
[1673271049259,0.67342376,17280.0,17279.0,0.53588816]
[1673271049767,0.67342376,17280.0,17279.0,0.53579105]
[1673271050284,1.10735407,17280.0,17279.0,0.53579105]
[1673271050527,0.84709603,17280.0,17279.0,0.53579105]
[1673271050783,0.67317287,17280.0,17279.0,0.53579105]
[1673271051552,1.10732807,17280.0,17279.0,0.53579105]
[1673271051814,0.84709603,17280.0,17279.0,0.53579105]
[1673271052581,0.84709603,17280.0,17279.0,0.43055531]
[1673271052831,0.67314758,17280.0,17279.0,0.43055531]
[1673271053083,0.67314758,17280.0,17279.0,0.83055531]
[1673271053585,0.84661377,17280.0,17279.0,1.51379701]
[1673271053844,0.49929553,17280.0,17279.0,1.93658707]
[1673271054101,0.23908878,17280.0,17279.0,1.93658707]
[1673271054607,0.49929553,17280.0,17279.0,1.93658707]
[1673271055362,0.49929553,17280.0,17279.0,1.51379701]
[1673271055588,0.23908878,17280.0,17279.0,1.93629689]
[1673271057145,0.23908878,17280.0,17279.0,1.93627428]
[1673271059410,0.23908878,17280.0,17279.0,2.51501128]
[1673271059664,0.06562261,17280.0,17279.0,2.51501128]
[1673271059917,0.23908878,17280.0,17279.0,2.51501128]
[1673271060411,0.06562261,17280.0,17279.0,2.51501128]
[1673271060664,0.23908878,17280.0,17279.0,2.51501128]
[1673271062508,0.06562261,17280.0,17279.0,3.09374828]
[1673271063526,0.043,17280.0,17279.0,3.77838381]
[1673271063777,0.22244263,17281.0,17279.0,4.14081381]
[1673271064020,0.04897646,17281.0,17280.0,1.63364029]
[1673271064275,0.04897646,17281.0,17280.0,2.49888829]
[1673271064527,0.45537953,17282.0,17280.0,3.07759129]
[1673271064778,0.45537953,17282.0,17281.0,0.42005984]
[1673271065029,0.45537953,17282.0,17281.0,1.97739984]
[1673271065250,0.45537953,17282.0,17281.0,1.97718656]
[1673271065500,0.45537953,17282.0,17281.0,1.92374178]
[1673271065749,0.62923158,17282.0,17281.0,1.92374178]
[1673271066256,0.63223158,17282.0,17281.0,1.93374178]
[1673271066516,0.63223158,17282.0,17281.0,1.81734]
[1673271067560,0.63223158,17282.0,17281.0,1.93374178]
[1673271067790,0.63223158,17282.0,17281.0,1.35507178]
[1673271068040,0.80618003,17282.0,17281.0,0.77640178]
[1673271072556,0.80618003,17282.0,17281.0,0.66]
[1673271074564,0.80618003,17282.0,17281.0,1.23867]
[1673271077256,0.80618003,17282.0,17281.0,1.672637]
[1673271077792,1.06645214,17282.0,17281.0,1.672637]
[1673271078298,0.63229694,17282.0,17281.0,1.672637]
[1673271080531,0.63229694,17282.0,17281.0,1.80184438]
[1673271080778,0.63229694,17282.0,17281.0,2.38051438]
[1673271081628,0.45846677,17282.0,17281.0,2.251307]
[1673271081873,0.80578499,17282.0,17281.0,2.251307]
[1673271082124,0.63229694,17282.0,17281.0,1.81734]
[1673271082372,0.63229694,17282.0,17281.0,2.25122108]
[1673271082742,0.63229694,17282.0,17281.0,1.09388108]
[1673271082994,0.63229694,17282.0,17281.0,2.25122108]
[1673271084028,0.63229694,17282.0,17281.0,2.251307]
[1673271086510,0.4584516,17282.0,17281.0,2.251307]
[1673271087021,0.63229694,17282.0,17281.0,2.251307]
[1673271088524,0.63229694,17282.0,17281.0,1.81734]
[1673271089248,1.06645214,17282.0,17281.0,1.81734]
[1673271089489,0.63229694,17282.0,17281.0,1.81734]
[1673271090504,0.80618003,17282.0,17281.0,1.81734]
[1673271092766,0.80618003,17282.0,17281.0,1.23867]
[1673271092767,0.45886181,17282.0,17281.0,1.23867]
[1673271093514,0.45886181,17282.0,17281.0,1.36787738]
[1673271094297,0.43395038,17282.0,17281.0,2.89134886]
[1673271094552,0.43395038,17282.0,17281.0,2.38051438]
[1673271094816,0.6075396,17283.0,17281.0,2.38051438]
[1673271095060,0.0727831,17284.0,17282.0,1.48048268]
[1673271095061,0.6803227,17284.0,17282.0,1.48048268]
[1673271095328,0.6803227,17284.0,17283.0,1.8852235]
[1673271095573,0.6803227,17284.0,17283.0,1.5931885]
[1673271095873,0.63085737,17284.0,17283.0,1.5931885]
[1673271096090,0.63085737,17284.0,17283.0,1.8431885]
[1673271096639,0.63085737,17284.0,17283.0,0.828603]
[1673271096862,0.37049047,17284.0,17283.0,0.836603]
[1673271097112,0.37049047,17284.0,17283.0,1.236603]
[1673271097642,0.37049047,17284.0,17283.0,1.36548081]
[1673271097903,0.37049047,17284.0,17283.0,2.38006631]
[1673271098153,0.63075758,17284.0,17283.0,2.38006631]
[1673271098394,0.28358488,17284.0,17283.0,2.38006631]
[1673271099949,0.63075758,17284.0,17283.0,2.38006631]
[1673271100306,0.28358488,17284.0,17283.0,1.94408381]
[1673271100714,0.28358488,17284.0,17283.0,2.2511885]
[1673271101692,0.28358488,17284.0,17283.0,2.38006631]
[1673271102424,0.28358488,17284.0,17283.0,1.94408381]
[1673271102694,0.28358488,17284.0,17283.0,2.38006631]
[1673271103211,0.28358488,17284.0,17283.0,3.55941764]
[1673271103457,0.28358488,17284.0,17283.0,3.43053983]
[1673271104234,0.28358488,17284.0,17283.0,2.85193683]
[1673271104460,0.28358488,17284.0,17283.0,2.96046551]
[1673271107284,0.02331777,17284.0,17283.0,2.38186251]
[1673271108500,0.02305137,17284.0,17283.0,2.38186251]
[1673271108985,0.02305137,17284.0,17283.0,1.80325951]
[1673271110351,0.02305137,17284.0,17283.0,2.21924157]
[1673271110839,0.02305137,17284.0,17283.0,2.79784457]
[1673271112445,0.02305137,17284.0,17283.0,3.26791889]
[1673271116376,0.02305137,17284.0,17283.0,2.83193639]
[1673271117392,0.02305137,17284.0,17283.0,2.25333339]
[1673271119875,0.02305137,17284.0,17283.0,1.67473039]
[1673271120584,0.02305137,17284.0,17283.0,1.78361665]
[1673271121899,0.02305137,17284.0,17283.0,1.38361665]
[1673271122424,0.38548137,17284.0,17283.0,1.38361665]
[1673271122684,0.02305137,17284.0,17283.0,1.27473039]
[1673271122932,0.64280767,17284.0,17283.0,0.67398206]
[1673271123253,1.00523767,17284.0,17283.0,0.67398206]
[1673271123705,1.00523767,17284.0,17283.0,0.78891756]
[1673271124964,1.58380667,17284.0,17283.0,0.78891756]
[1673271125500,2.16237567,17284.0,17283.0,0.78891756]
[1673271127218,1.54261937,17284.0,17283.0,0.78891756]
[1673271128447,1.54261937,17284.0,17283.0,0.67398206]
[1673271128985,1.54261937,17284.0,17283.0,0.67387629]
[1673271129472,0.38548137,17284.0,17283.0,0.81007962]
[1673271129711,0.02305137,17284.0,17283.0,0.81007962]
[1673271132505,0.60162037,17284.0,17283.0,0.67387629]
[1673271132751,1.74452951,17284.0,17283.0,0.67387629]
[1673271133507,1.73952951,17284.0,17283.0,0.67387629]
[1673271135303,1.39264989,17284.0,17283.0,0.67387629]
[1673271137616,1.39264989,17284.0,17283.0,0.80655679]
[1673271137871,0.81408089,17284.0,17283.0,0.80655679]
[1673271138648,0.81408089,17284.0,17283.0,0.67387629]
[1673271139136,1.16094458,17284.0,17283.0,0.67387629]
[1673271139646,0.79851458,17284.0,17283.0,0.67387629]
[1673271139901,0.62505914,17284.0,17283.0,0.67387629]
[1673271140161,0.62505914,17284.0,17283.0,1.25247929]
[1673271141349,0.79851458,17284.0,17283.0,0.67387629]
[1673271141820,0.45165089,17284.0,17283.0,0.67387629]
[1673271142638,0.798509,17284.0,17283.0,0.67387629]
[1673271150306,0.45165089,17284.0,17283.0,0.67387629]
[1673271150550,0.7985743,17284.0,17283.0,0.67387629]
[1673271151092,0.7985743,17284.0,17283.0,1.25231854]
[1673271151306,0.7985743,17284.0,17283.0,1.83092154]
[1673271151817,1.05877963,17284.0,17283.0,1.83092154]
[1673271155084,1.40587316,17284.0,17283.0,1.83092154]
[1673271155809,1.40587316,17284.0,17283.0,1.83081758]
[1673271156315,1.40580665,17284.0,17283.0,1.83081758]
[1673271156562,1.40580665,17284.0,17283.0,1.25221458]
[1673271156776,1.76823665,17284.0,17283.0,1.25221458]
[1673271157054,1.42114312,17284.0,17283.0,1.25221458]
[1673271157312,1.05871312,17284.0,17283.0,1.25221458]
[1673271157592,1.42114312,17284.0,17283.0,1.24721458]
[1673271157844,1.05871312,17284.0,17283.0,1.24721458]
[1673271158092,1.05871312,17284.0,17283.0,0.66877233]
[1673271158342,1.42114312,17284.0,17283.0,0.66877233]
[1673271158594,1.05871312,17284.0,17283.0,0.66877233]
[1673271160562,0.9875436,17284.0,17283.0,0.66877233]
[1673271160804,1.05909147,17284.0,17283.0,0.66877233]
[1673271161059,0.9875436,17284.0,17283.0,0.66877233]
[1673271161835,0.6251136,17284.0,17283.0,0.66877233]
[1673271162075,1.14543303,17284.0,17283.0,0.66877233]
[1673271163290,1.50786303,17284.0,17283.0,0.66877233]
[1673271166517,3.39391535,17284.0,17283.0,0.66877233]
[1673271167288,3.97927471,17284.0,17283.0,0.66877233]
[1673271167533,3.07411291,17284.0,17283.0,0.66877233]
[1673271168282,3.59469615,17284.0,17283.0,0.66877233]
[1673271168530,3.29469615,17284.0,17283.0,0.66877233]
[1673271170070,3.59469615,17284.0,17283.0,0.66877233]
[1673271170316,3.3117908,17284.0,17283.0,0.66877233]
[1673271170560,4.08882101,17284.0,17283.0,0.66877233]
[1673271175766,5.00938037,17284.0,17283.0,0.66877233]
[1673271176568,4.57324127,17284.0,17283.0,0.66877233]
[1673271177568,3.68788191,17284.0,17283.0,0.66877233]
[1673271179382,4.20788601,17284.0,17283.0,0.66877233]
[1673271179627,4.20788638,17284.0,17283.0,0.66877233]
[1673271179860,3.68788191,17284.0,17283.0,0.66877233]
[1673271180287,3.68788191,17284.0,17283.0,0.66870437]
[1673271180547,4.2078853,17284.0,17283.0,0.66870437]
[1673271181338,3.68788191,17284.0,17283.0,0.66870437]
[1673271183855,4.11740912,17284.0,17283.0,0.66870437]
[1673271187296,3.68788191,17284.0,17283.0,0.66870437]
[1673271187578,3.98788191,17284.0,17283.0,0.66870437]
[1673271187823,4.50777649,17284.0,17283.0,0.66870437]
[1673271189520,4.50827649,17284.0,17283.0,0.66870437]
[1673271190226,4.42353556,17284.0,17283.0,0.66870437]
[1673271193169,3.90364098,17284.0,17283.0,0.66870437]
[1673271193644,3.73604098,17284.0,17283.0,0.66870437]
[1673271195272,4.32140034,17284.0,17283.0,0.66870437]
[1673271195794,3.73604098,17284.0,17283.0,0.66870437]
[1673271196538,4.08860859,17284.0,17283.0,0.66870437]
[1673271198013,3.56844098,17284.0,17283.0,0.66870437]
[1673271200542,4.08888445,17284.0,17283.0,0.66870437]
[1673271200773,3.56844098,17284.0,17283.0,0.66870437]
[1673271204013,3.26844098,17284.0,17283.0,0.66870437]
[1673271204265,3.56844098,17284.0,17283.0,0.66870437]
[1673271205291,3.26844098,17284.0,17283.0,0.66870437]
[1673271205776,3.78920778,17284.0,17283.0,0.66870437]
[1673271206771,2.58120747,17284.0,17283.0,0.66870437]
[1673271207012,1.93861013,17284.0,17283.0,0.66870437]
[1673271207262,1.93861013,17284.0,17283.0,1.06870437]
[1673271207775,1.93861013,17284.0,17283.0,0.66870437]
[1673271208516,1.93861013,17284.0,17283.0,1.10317829]
[1673271208808,0.26070533,17284.0,17283.0,1.10317829]
[1673271209046,0.69455305,17284.0,17283.0,1.7131492]
[1673271209539,1.04164756,17284.0,17283.0,1.7131492]
[1673271209784,0.69455305,17284.0,17283.0,1.7131492]
[1673271210032,1.04137467,17284.0,17283.0,1.7131492]
[1673271212465,1.04137467,17284.0,17283.0,1.69989396]
[1673271212466,1.40380467,17284.0,17283.0,1.69989396]
[1673271212703,1.04137467,17284.0,17283.0,1.69989396]
[1673271212972,0.69444666,17284.0,17283.0,1.69989396]
[1673271213469,1.04126847,17284.0,17283.0,1.69989396]
[1673271215256,0.60742075,17284.0,17283.0,1.69989396]
[1673271217004,1.04126847,17284.0,17283.0,1.69989396]
[1673271217996,0.60742075,17284.0,17283.0,1.69989396]
[1673271218250,1.04126847,17284.0,17283.0,1.69989396]
[1673271218991,1.30127231,17284.0,17283.0,1.69989396]
[1673271219477,1.04126847,17284.0,17283.0,1.69989396]
[1673271219718,0.86742156,17284.0,17283.0,1.69989396]
[1673271219963,0.86741997,17284.0,17283.0,1.69989396]
[1673271220468,1.30126769,17284.0,17283.0,1.69989396]
[1673271220957,0.86741037,17284.0,17283.0,1.69989396]
[1673271221440,1.30125809,17284.0,17283.0,1.69989396]
[1673271221738,1.04126847,17284.0,17283.0,1.69989396]
[1673271221950,0.86740976,17284.0,17283.0,1.69989396]
[1673271225377,0.86740976,17284.0,17283.0,1.69489396]
[1673271225619,0.69389989,17284.0,17283.0,1.69489396]
[1673271226617,1.0407217,17284.0,17283.0,1.86249396]
[1673271226861,0.86740976,17284.0,17283.0,2.44109696]
[1673271229134,1.04072652,17284.0,17283.0,2.44109696]
[1673271229404,0.69390471,17284.0,17283.0,2.44109696]
[1673271232665,1.04072652,17284.0,17283.0,2.44109696]
[1673271232900,0.69390471,17284.0,17283.0,2.44109696]
[1673271233575,1.04073627,17284.0,17283.0,2.44109696]
[1673271233831,0.86740976,17284.0,17283.0,2.44109696]
[1673271234070,0.69393706,17284.0,17283.0,2.44109696]
[1673271234315,1.04075921,17284.0,17283.0,2.44109696]
[1673271234562,0.86740976,17284.0,17283.0,2.44109696]
[1673271235042,0.69393702,17284.0,17283.0,2.44109696]
[1673271235292,0.86740976,17284.0,17283.0,2.44109696]
[1673271237354,0.69397505,17284.0,17283.0,2.44109696]
[1673271238133,0.86740976,17284.0,17283.0,2.44109696]
[1673271239130,0.86740976,17284.0,17283.0,3.01969996]
[1673271239408,1.04082243,17284.0,17283.0,3.01969996]
[1673271239660,0.69400062,17284.0,17283.0,3.01969996]
[1673271240157,0.86740976,17284.0,17283.0,3.01969996]
[1673271240690,0.69402841,17284.0,17283.0,3.01969996]
[1673271241172,1.04085022,17284.0,17283.0,3.01969996]
[1673271241474,0.69402841,17284.0,17283.0,3.01969996]
[1673271241938,0.86740976,17284.0,17283.0,3.01969996]
[1673271242455,1.04088911,17284.0,17283.0,3.01969996]
[1673271242710,0.86740976,17284.0,17283.0,3.01969996]
[1673271242942,1.04088925,17284.0,17283.0,3.01969996]
[1673271243199,0.86740976,17284.0,17283.0,3.01969996]
[1673271244178,1.30125748,17284.0,17283.0,3.01969996]
[1673271244398,1.04126847,17284.0,17283.0,3.01969996]
[1673271245566,1.03926847,17284.0,17283.0,3.01969996]
[1673271246088,0.69244666,17284.0,17283.0,3.01969996]
[1673271246612,0.69244666,17284.0,17283.0,1.98851037]
[1673271246875,0.69244666,17284.0,17283.0,1.23130437]
[1673271247151,0.25859894,17284.0,17283.0,1.23130437]
[1673271247918,0.25859894,17284.0,17283.0,1.65080904]
[1673271248494,0.69266489,17284.0,17283.0,1.65080904]
[1673271249398,0.25859894,17284.0,17283.0,1.23130437]
[1673271250394,0.25859894,17284.0,17283.0,1.65082376]
[1673271250883,0.25859894,17284.0,17283.0,1.23130437]
[1673271252142,0.77936574,17284.0,17283.0,1.23130437]
[1673271252389,0.25859894,17284.0,17283.0,1.23130437]
[1673271255977,0.25359894,17284.0,17283.0,1.23130437]
[1673271256487,0.25359894,17284.0,17283.0,1.06370437]
[1673271257490,0.25359894,17284.0,17283.0,1.48324449]
[1673271258751,0.25359894,17284.0,17283.0,1.06370437]
[1673271260479,0.25359894,17284.0,17283.0,1.48299684]
[1673271261209,0.25359894,17284.0,17283.0,1.06370437]
[1673271261463,0.25359894,17284.0,17283.0,1.48302343]
[1673271261729,0.25359894,17284.0,17283.0,1.06370437]
[1673271264572,0.25359894,17284.0,17283.0,0.66370437]
[1673271264820,0.77436574,17284.0,17283.0,0.66370437]
[1673271265072,0.25359894,17284.0,17283.0,0.66370437]
[1673271265290,0.77436574,17284.0,17283.0,0.66370437]
[1673271265540,0.25359894,17284.0,17283.0,0.66370437]
[1673271265795,0.77436574,17284.0,17283.0,0.66370437]
[1673271266597,1.13679574,17284.0,17283.0,0.66370437]
[1673271266844,0.77436574,17284.0,17283.0,0.66370437]
[1673271267105,1.13679574,17284.0,17283.0,0.66370437]
[1673271268103,0.77436574,17284.0,17283.0,0.66370437]
[1673271268351,1.13679574,17284.0,17283.0,0.66370437]
[1673271269503,0.77436574,17284.0,17283.0,0.66370437]
[1673271269744,1.13679574,17284.0,17283.0,0.66370437]
[1673271270270,0.77436574,17284.0,17283.0,0.66370437]
[1673271271466,1.13679574,17284.0,17283.0,0.66370437]
[1673271272933,0.77436574,17284.0,17283.0,0.66370437]
[1673271273186,1.13679574,17284.0,17283.0,0.66370437]
[1673271274924,1.71536474,17284.0,17283.0,0.66370437]
[1673271275472,2.01536474,17284.0,17283.0,0.66370437]
[1673271278002,1.49459794,17284.0,17283.0,0.66370437]
[1673271278254,1.71515229,17284.0,17283.0,0.66370437]
[1673271278519,2.29372129,17284.0,17283.0,0.66370437]
[1673271279037,2.59372129,17284.0,17283.0,0.66358648]
[1673271280289,2.29372129,17284.0,17283.0,0.66358648]
[1673271280547,2.29372129,17284.0,17283.0,0.83094523]
[1673271282741,0.77415329,17284.0,17283.0,1.06358648]
[1673271283539,0.25359894,17284.0,17283.0,1.48383093]
[1673271283785,0.68737003,17284.0,17283.0,1.48383093]
[1673271284526,0.68737003,17284.0,17283.0,1.6396345]
[1673271284771,0.68737003,17284.0,17283.0,1.21939005]
[1673271286796,0.25359894,17284.0,17283.0,1.21939005]
[1673271287074,0.25359894,17284.0,17283.0,0.81939005]
[1673271287307,1.13658329,17284.0,17283.0,0.81939005]
[1673271287821,0.77415329,17284.0,17283.0,0.81939005]
[1673271288067,1.13658329,17284.0,17283.0,0.81939005]
[1673271288563,1.13658329,17284.0,17283.0,0.66358648]
[1673271291075,0.77415329,17284.0,17283.0,0.66358648]
[1673271291330,1.13658329,17284.0,17283.0,0.66358648]
[1673271292100,1.71515229,17284.0,17283.0,0.66358648]
[1673271293126,1.35272229,17284.0,17283.0,0.66358648]
[1673271293392,1.71515229,17284.0,17283.0,0.66358648]
[1673271293926,1.35272229,17284.0,17283.0,0.66358648]
[1673271294127,1.71515229,17284.0,17283.0,0.66358648]
[1673271294374,1.35272229,17284.0,17283.0,0.66358648]
[1673271294633,1.71515229,17284.0,17283.0,0.81172264]
[1673271294883,1.35272229,17284.0,17283.0,0.81172264]
[1673271295135,1.71515229,17284.0,17283.0,0.81172264]
[1673271295395,1.35272229,17284.0,17283.0,0.81172264]
[1673271295640,1.71515229,17284.0,17283.0,0.66358648]
[1673271296386,1.35272229,17284.0,17283.0,0.66358648]
[1673271296667,1.71515229,17284.0,17283.0,0.66358648]
[1673271297156,1.35272229,17284.0,17283.0,0.66358648]
[1673271297409,1.71515229,17284.0,17283.0,0.66358648]
[1673271298639,1.71515229,17284.0,17283.0,0.81172264]
[1673271299126,0.77415329,17284.0,17283.0,0.81172264]
[1673271299383,0.77415329,17284.0,17283.0,1.21172264]
[1673271300365,1.13658329,17284.0,17283.0,1.21172264]
[1673271300846,1.13658329,17284.0,17283.0,0.81172264]
[1673271301574,1.13369829,17284.0,17283.0,0.81172264]
[1673271301834,1.13369829,17284.0,17283.0,1.21172264]
[1673271302356,0.77126829,17284.0,17283.0,1.21172264]
[1673271302612,1.13369829,17284.0,17283.0,1.21172264]
[1673271303141,1.12962329,17284.0,17283.0,1.21172264]
[1673271303408,1.06719329,17284.0,17283.0,0.81172264]
[1673271303672,0.90906894,17284.0,17283.0,0.81172264]
[1673271304415,0.60906894,17284.0,17283.0,0.81172264]
[1673271304879,0.90906894,17284.0,17283.0,0.81172264]
[1673271305617,3.24390298,17284.0,17283.0,0.81172264]
[1673271305863,2.66533398,17284.0,17283.0,0.81172264]
[1673271306358,3.54452593,17284.0,17283.0,0.81172264]
[1673271306603,2.95916657,17284.0,17283.0,0.81172264]
[1673271307097,3.41194335,17284.0,17283.0,0.81172264]
[1673271308615,2.82604362,17284.0,17283.0,0.81172264]
[1673271310146,3.40461262,17284.0,17283.0,0.81172264]
[1673271310643,2.06620694,17284.0,17283.0,0.81172264]
[1673271310897,2.28687898,17284.0,17283.0,0.81172264]
[1673271312129,2.34074004,17284.0,17283.0,0.81172264]
[1673271312642,2.34074004,17284.0,17283.0,0.66358648]
[1673271313646,2.34074004,17284.0,17283.0,0.80446756]
[1673271313892,1.820068,17284.0,17283.0,0.80446756]
[1673271314393,0.88360405,17284.0,17283.0,0.80446756]
[1673271317553,0.36293,17284.0,17283.0,0.80446756]
[1673271317805,0.0005,17284.0,17283.0,0.80446756]
[1673271318053,0.36293,17284.0,17283.0,0.80446756]
[1673271318812,0.88360405,17284.0,17283.0,0.80446756]
[1673271322039,0.36293,17284.0,17283.0,0.80446756]
[1673271323040,0.0005,17284.0,17283.0,0.80446756]
[1673271323775,0.88360405,17284.0,17283.0,0.80446756]
[1673271324281,0.36293,17284.0,17283.0,0.80446756]
[1673271324788,0.88360405,17284.0,17283.0,0.80446756]
[1673271326538,0.36293,17284.0,17283.0,0.80446756]
[1673271326803,0.88360405,17284.0,17283.0,0.80446756]
[1673271327047,0.36293,17284.0,17283.0,0.80446756]
[1673271327662,0.88360405,17284.0,17283.0,0.80439882]
[1673271329448,0.36293,17284.0,17283.0,0.80439882]
[1673271330199,0.0005,17284.0,17283.0,1.20439882]
[1673271331668,0.43432472,17284.0,17283.0,1.20439882]
[1673271335660,0.7813001,17284.0,17283.0,1.20439882]
[1673271336630,0.7813001,17284.0,17283.0,1.06351774]
[1673271338596,0.7813001,17284.0,17283.0,1.64212074]
[1673271340448,0.43405957,17284.0,17283.0,2.48748661]
[1673271340698,0.17392383,17284.0,17283.0,3.37187891]
[1673271340960,0.0005,17284.0,17283.0,3.37187891]
[1673271341207,0.0005,17284.0,17283.0,2.9702865]
[1673271341454,0.17392383,17284.0,17283.0,2.9702865]
[1673271342714,0.0005,17284.0,17283.0,2.9702865]
[1673271343484,0.0005,17284.0,17283.0,3.37194315]
[1673271344227,0.0005,17284.0,17283.0,2.9702865]
[1673271345519,0.0005,17284.0,17283.0,3.37198739]
[1673271346271,0.0005,17284.0,17283.0,2.9702865]
[1673271346516,0.0005,17284.0,17283.0,4.54423887]
[1673271346766,0.0005,17284.0,17283.0,4.88743887]
[1673271347272,0.0005,17284.0,17283.0,4.72033887]
[1673271348526,0.0005,17284.0,17283.0,4.71233887]
[1673271348777,0.0005,17284.0,17283.0,4.77633887]
[1673271349024,0.0005,17284.0,17283.0,4.71233887]
[1673271349268,0.0005,17284.0,17283.0,4.85033887]
[1673271352091,0.0005,17284.0,17283.0,4.8349942]
[1673271352651,0.0005,17284.0,17283.0,4.5294942]
[1673271353220,0.0005,17284.0,17283.0,4.6694942]
[1673271353479,0.0005,17284.0,17283.0,4.5294942]
[1673271354541,0.0005,17284.0,17283.0,4.6694942]
[1673271357972,0.0005,17284.0,17283.0,4.0908912]
[1673271358220,0.17392383,17284.0,17283.0,2.73987982]
[1673271358474,0.17392383,17284.0,17283.0,2.57227982]
[1673271358728,0.43405957,17284.0,17283.0,1.59367682]
[1673271359480,0.78103495,17284.0,17283.0,0.91345988]
[1673271359732,0.60761112,17284.0,17283.0,0.91345988]